[Event "*** SCC Grand Prix: Titled Tuesday Blitz"]
[Site "Chess.com"]
[Date "2020.06.23"]
[Round "3"]
[White "VincentKeymer"]
[Black "Shubinkirill2003"]
[Result "1-0"]
[WhiteElo "2850"]
[BlackElo "2632"]
[TimeControl "180+1"]
[EndTime "10:27:14 PDT"]
[Termination "VincentKeymer won by resignation"]

1. Nf3 {[%clk 0:03:00.9]} 1... Nf6 {[%clk 0:02:59.4]} 2. c4 {[%clk 0:03:01]}
2... b6 {[%clk 0:02:58.1]} 3. d4 {[%clk 0:02:59.9]} 3... e6 {[%clk 0:02:57.2]}
4. g3 {[%clk 0:03:00.1]} 4... Bb7 {[%clk 0:02:56.7]} 5. Bg2 {[%clk 0:03:00.1]}
5... Be7 {[%clk 0:02:56.8]} 6. O-O {[%clk 0:03:00.5]} 6... O-O {[%clk
0:02:56.8]} 7. Nc3 {[%clk 0:03:01.1]} 7... Ne4 {[%clk 0:02:56.3]} 8. Bd2 {[%clk
0:03:01.7]} 8... Bf6 {[%clk 0:02:55.7]} 9. Re1 {[%clk 0:03:01.3]} 9... Nxd2
{[%clk 0:02:52.3]} 10. Qxd2 {[%clk 0:03:02.2]} 10... d6 {[%clk 0:02:52.2]} 11.
e4 {[%clk 0:03:01.3]} 11... e5 {[%clk 0:02:51.9]} 12. Rad1 {[%clk 0:02:59.4]}
12... Nd7 {[%clk 0:02:50.9]} 13. d5 {[%clk 0:02:54.6]} 13... a5 {[%clk
0:02:48.2]} 14. h4 {[%clk 0:02:54.4]} 14... g6 {[%clk 0:02:46.7]} 15. h5 {[%clk
0:02:51.7]} 15... Bg7 {[%clk 0:02:42.8]} 16. Bh3 {[%clk 0:02:50.7]} 16... Nc5
{[%clk 0:02:39.4]} 17. Kg2 {[%clk 0:02:48.2]} 17... Bc8 {[%clk 0:02:32.2]} 18.
Rh1 {[%clk 0:02:47.7]} 18... a4 {[%clk 0:02:05.3]} 19. Qe2 {[%clk 0:02:25.5]}
19... f5 {[%clk 0:01:52.7]} 20. hxg6 {[%clk 0:02:10.2]} 20... hxg6 {[%clk
0:01:51]} 21. Rh2 {[%clk 0:01:58.8]} 21... Qf6 {[%clk 0:01:42.9]} 22. Rdh1
{[%clk 0:01:49.8]} 22... Bd7 {[%clk 0:01:35.6]} 23. Nh4 {[%clk 0:01:33.6]} 23...
Rf7 {[%clk 0:01:15.7]} 24. exf5 {[%clk 0:01:30.6]} 24... gxf5 {[%clk 0:01:13.6]}
25. Qh5 {[%clk 0:01:27.6]} 25... f4 {[%clk 0:01:04.7]} 26. Bxd7 {[%clk
0:01:20.7]} 26... fxg3 {[%clk 0:00:58]} 27. fxg3 {[%clk 0:01:17.3]} 27... Qf2+
{[%clk 0:00:23.6]} 28. Kh3 {[%clk 0:01:14.5]} 1-0

[Event "*** SCC Grand Prix: Titled Tuesday Blitz"]
[Site "Chess.com"]
[Date "2020.06.23"]
[Round "3"]
[White "Boudicca64"]
[Black "colegiodemadrid"]
[Result "0-1"]
[WhiteElo "1793"]
[BlackElo "2369"]
[TimeControl "180+1"]
[EndTime "10:27:15 PDT"]
[Termination "colegiodemadrid won on time"]

1. e4 {[%clk 0:03:00.9]} 1... c5 {[%clk 0:02:59.3]} 2. g3 {[%clk 0:02:59.3]}
2... d5 {[%clk 0:02:57.6]} 3. exd5 {[%clk 0:02:57.5]} 3... Qxd5 {[%clk
0:02:58.5]} 4. Nf3 {[%clk 0:02:56.2]} 4... Qe6+ {[%clk 0:02:55.8]} 5. Be2 {[%clk
0:02:53.5]} 5... Nc6 {[%clk 0:02:55]} 6. O-O {[%clk 0:02:49.6]} 6... h5 {[%clk
0:02:54.9]} 7. d4 {[%clk 0:02:42.6]} 7... cxd4 {[%clk 0:02:54.4]} 8. Nxd4 {[%clk
0:02:41.1]} 8... Nxd4 {[%clk 0:02:53.3]} 9. Qxd4 {[%clk 0:02:30.9]} 9... Qxe2
{[%clk 0:02:51.9]} 10. Nc3 {[%clk 0:02:28.7]} 10... Qe6 {[%clk 0:02:48.1]} 11.
Bf4 {[%clk 0:02:25.5]} 11... Qb6 {[%clk 0:02:31.2]} 12. Qd3 {[%clk 0:02:08.5]}
12... Bh3 {[%clk 0:02:10.1]} 13. Rfd1 {[%clk 0:02:04.8]} 13... Rd8 {[%clk
0:02:06.3]} 14. Nd5 {[%clk 0:02:03.1]} 14... Rxd5 {[%clk 0:01:44.9]} 15. Qxd5
{[%clk 0:02:00.9]} 15... Nf6 {[%clk 0:01:45.5]} 16. Qc4 {[%clk 0:01:31.6]} 16...
Qc6 {[%clk 0:01:39.7]} 17. Qxc6+ {[%clk 0:00:49.7]} 17... bxc6 {[%clk
0:01:40.6]} 18. Be3 {[%clk 0:00:35.6]} 18... a6 {[%clk 0:01:35.4]} 19. Bb6
{[%clk 0:00:33]} 19... Nd7 {[%clk 0:01:33.6]} 20. Ba5 {[%clk 0:00:28.3]} 20...
e5 {[%clk 0:01:33.9]} 21. Rd2 {[%clk 0:00:16.4]} 21... Bc5 {[%clk 0:01:32.6]}
22. Rad1 {[%clk 0:00:14.5]} 22... Bg4 {[%clk 0:01:28.4]} 23. Rd3 {[%clk
0:00:10]} 23... Bxd1 {[%clk 0:01:27.5]} 24. Rxd1 {[%clk 0:00:07.1]} 24... Ke7
{[%clk 0:01:27.8]} 25. b4 {[%clk 0:00:04]} 25... Bd6 {[%clk 0:01:27.8]} 26. c4
{[%clk 0:00:02.5]} 26... c5 {[%clk 0:01:26.8]} 0-1

[Event "*** SCC Grand Prix: Titled Tuesday Blitz"]
[Site "Chess.com"]
[Date "2020.06.23"]
[Round "3"]
[White "Pintacara"]
[Black "shineatchess"]
[Result "1/2-1/2"]
[WhiteElo "2332"]
[BlackElo "2122"]
[TimeControl "180+1"]
[EndTime "10:27:17 PDT"]
[Termination "Game drawn by agreement"]

1. d4 {[%clk 0:03:00.9]} 1... Nf6 {[%clk 0:02:59.7]} 2. Bg5 {[%clk 0:02:58.6]}
2... d5 {[%clk 0:02:59.2]} 3. Bxf6 {[%clk 0:02:58]} 3... exf6 {[%clk 0:02:59.1]}
4. e3 {[%clk 0:02:58.1]} 4... Bd6 {[%clk 0:02:58.8]} 5. c4 {[%clk 0:02:57.9]}
5... dxc4 {[%clk 0:02:57.7]} 6. Bxc4 {[%clk 0:02:58.8]} 6... O-O {[%clk
0:02:56.9]} 7. Nc3 {[%clk 0:02:58.4]} 7... f5 {[%clk 0:02:55.9]} 8. Nf3 {[%clk
0:02:57.7]} 8... c6 {[%clk 0:02:55.7]} 9. h3 {[%clk 0:02:57.5]} 9... Nd7 {[%clk
0:02:55.6]} 10. Bd3 {[%clk 0:02:56.6]} 10... Nf6 {[%clk 0:02:54.4]} 11. g4
{[%clk 0:02:56.5]} 11... fxg4 {[%clk 0:02:53.2]} 12. hxg4 {[%clk 0:02:57.4]}
12... Bxg4 {[%clk 0:02:49.9]} 13. Qe2 {[%clk 0:02:01.9]} 13... h6 {[%clk
0:02:48.8]} 14. O-O-O {[%clk 0:02:00.5]} 14... Bb4 {[%clk 0:02:28.8]} 15. Rdg1
{[%clk 0:01:53.2]} 15... Bxc3 {[%clk 0:02:24.8]} 16. bxc3 {[%clk 0:01:34.8]}
16... Re8 {[%clk 0:02:12.3]} 17. Rxh6 {[%clk 0:01:30.6]} 17... gxh6 {[%clk
0:01:48]} 18. Ne5 {[%clk 0:01:22.9]} 18... h5 {[%clk 0:01:35.5]} 19. f3 {[%clk
0:01:21.1]} 19... Qa5 {[%clk 0:01:23.6]} 20. fxg4 {[%clk 0:00:27]} 20... Qxc3+
{[%clk 0:01:21.9]} 21. Kb1 {[%clk 0:00:26.5]} 21... Qb4+ {[%clk 0:01:13.2]} 22.
Kc2 {[%clk 0:00:24.4]} 1/2-1/2

[Event "*** SCC Grand Prix: Titled Tuesday Blitz"]
[Site "Chess.com"]
[Date "2020.06.23"]
[Round "3"]
[White "sasko1234"]
[Black "Alexander_Donchenko"]
[Result "0-1"]
[WhiteElo "2423"]
[BlackElo "2679"]
[TimeControl "180+1"]
[EndTime "10:27:19 PDT"]
[Termination "Alexander_Donchenko won by resignation"]

1. b3 {[%clk 0:03:00.9]} 1... c5 {[%clk 0:02:52]} 2. Bb2 {[%clk 0:03:00.8]} 2...
Nc6 {[%clk 0:02:52.7]} 3. e3 {[%clk 0:03:01]} 3... Nf6 {[%clk 0:02:52]} 4. f4
{[%clk 0:03:00.7]} 4... g6 {[%clk 0:02:51.5]} 5. Nf3 {[%clk 0:03:00.8]} 5... Bg7
{[%clk 0:02:51.8]} 6. Be2 {[%clk 0:03:01.1]} 6... O-O {[%clk 0:02:52.4]} 7. O-O
{[%clk 0:03:00.6]} 7... d5 {[%clk 0:02:52.5]} 8. Ne5 {[%clk 0:02:59.7]} 8...
Nxe5 {[%clk 0:02:51]} 9. Bxe5 {[%clk 0:02:59.1]} 9... b6 {[%clk 0:02:44.4]} 10.
Bf3 {[%clk 0:02:58.8]} 10... Bb7 {[%clk 0:02:44.3]} 11. d3 {[%clk 0:02:40.8]}
11... Nd7 {[%clk 0:02:38.8]} 12. Bxg7 {[%clk 0:02:40]} 12... Kxg7 {[%clk
0:02:39.7]} 13. Nd2 {[%clk 0:01:59.9]} 13... e5 {[%clk 0:02:38.9]} 14. fxe5
{[%clk 0:01:51.8]} 14... Nxe5 {[%clk 0:02:39.8]} 15. e4 {[%clk 0:01:52.1]} 15...
Qd7 {[%clk 0:02:25.7]} 16. exd5 {[%clk 0:01:45.8]} 16... Nxf3+ {[%clk
0:02:24.2]} 17. Qxf3 {[%clk 0:01:42.2]} 17... Bxd5 {[%clk 0:02:21.5]} 18. Qf6+
{[%clk 0:01:36.1]} 18... Kg8 {[%clk 0:02:22.1]} 19. Rae1 {[%clk 0:01:35]} 19...
Rae8 {[%clk 0:02:21.8]} 20. h3 {[%clk 0:01:24.3]} 20... Re6 {[%clk 0:02:18.4]}
21. Rxe6 {[%clk 0:01:21.9]} 21... Qxe6 {[%clk 0:02:18.3]} 22. Qxe6 {[%clk
0:01:20.9]} 22... Bxe6 {[%clk 0:02:19.2]} 23. a4 {[%clk 0:01:14.3]} 23... f5
{[%clk 0:02:15.9]} 24. Re1 {[%clk 0:01:13.7]} 24... Kf7 {[%clk 0:02:15.3]} 25.
Kf2 {[%clk 0:01:13.7]} 25... Kf6 {[%clk 0:02:13.4]} 26. Nf3 {[%clk 0:01:07.4]}
26... h6 {[%clk 0:02:08.6]} 27. Ne5 {[%clk 0:01:06.3]} 27... g5 {[%clk
0:02:05.2]} 28. Nc6 {[%clk 0:00:59]} 28... Ra8 {[%clk 0:01:58.3]} 29. Ne5 {[%clk
0:00:36.4]} 29... Rc8 {[%clk 0:01:55.8]} 30. Re2 {[%clk 0:00:33.1]} 30... Rc7
{[%clk 0:01:55.1]} 31. Re1 {[%clk 0:00:33.2]} 31... Bd5 {[%clk 0:01:55.2]} 32.
Nf3 {[%clk 0:00:30.2]} 32... f4 {[%clk 0:01:52.3]} 33. Nd2 {[%clk 0:00:29.4]}
33... Re7 {[%clk 0:01:48.4]} 34. Rxe7 {[%clk 0:00:25.9]} 34... Kxe7 {[%clk
0:01:49.3]} 35. Nf3 {[%clk 0:00:24.1]} 35... Kf6 {[%clk 0:01:47.9]} 36. Nd2
{[%clk 0:00:20.5]} 36... Ke5 {[%clk 0:01:47.5]} 37. Nf3+ {[%clk 0:00:19.3]}
37... Bxf3 {[%clk 0:01:47.4]} 38. Kxf3 {[%clk 0:00:18.6]} 38... Kd4 {[%clk
0:01:47.1]} 39. Ke2 {[%clk 0:00:18.3]} 39... Kc3 {[%clk 0:01:47]} 40. Kd1 {[%clk
0:00:18.4]} 40... h5 {[%clk 0:01:47]} 0-1

[Event "*** SCC Grand Prix: Titled Tuesday Blitz"]
[Site "Chess.com"]
[Date "2020.06.23"]
[Round "3"]
[White "maciek_92"]
[Black "ChessArchitect64"]
[Result "1-0"]
[WhiteElo "2699"]
[BlackElo "1894"]
[TimeControl "180+1"]
[EndTime "10:27:20 PDT"]
[Termination "maciek_92 won on time"]

1. d4 {[%clk 0:03:00.9]} 1... d5 {[%clk 0:02:58.9]} 2. c4 {[%clk 0:02:59.4]}
2... c6 {[%clk 0:02:57.9]} 3. Nc3 {[%clk 0:02:58.9]} 3... Nf6 {[%clk 0:02:55.1]}
4. Nf3 {[%clk 0:02:58.3]} 4... e6 {[%clk 0:02:53.8]} 5. e3 {[%clk 0:02:56.6]}
5... Nbd7 {[%clk 0:02:49.5]} 6. Qc2 {[%clk 0:02:56.7]} 6... Bd6 {[%clk
0:02:44.7]} 7. Bd3 {[%clk 0:02:57.1]} 7... O-O {[%clk 0:02:42.3]} 8. O-O {[%clk
0:02:56.1]} 8... Qe7 {[%clk 0:02:40.5]} 9. e4 {[%clk 0:02:45.1]} 9... dxe4
{[%clk 0:02:38.9]} 10. Nxe4 {[%clk 0:02:46]} 10... Nxe4 {[%clk 0:02:38.8]} 11.
Bxe4 {[%clk 0:02:46.9]} 11... Nf6 {[%clk 0:02:38.8]} 12. Bd3 {[%clk 0:02:43.9]}
12... c5 {[%clk 0:02:35.3]} 13. Bg5 {[%clk 0:02:34]} 13... h6 {[%clk 0:02:33.1]}
14. Bh4 {[%clk 0:02:33.1]} 14... b6 {[%clk 0:02:28]} 15. Rfe1 {[%clk 0:02:29.1]}
15... cxd4 {[%clk 0:02:25.9]} 16. Nxd4 {[%clk 0:02:28.6]} 16... Bb7 {[%clk
0:02:24.4]} 17. Nf5 {[%clk 0:02:16.6]} 17... Qc7 {[%clk 0:02:22.7]} 18. Nxd6
{[%clk 0:02:16.4]} 18... Qxd6 {[%clk 0:02:22.7]} 19. Bxf6 {[%clk 0:02:12.7]}
19... gxf6 {[%clk 0:02:23]} 20. Rad1 {[%clk 0:02:13.1]} 20... Qe7 {[%clk
0:02:19.9]} 21. Qd2 {[%clk 0:02:07.7]} 21... Kg7 {[%clk 0:02:09.6]} 22. Re3
{[%clk 0:02:06.2]} 22... Rh8 {[%clk 0:01:47.2]} 23. Rg3+ {[%clk 0:02:01.6]}
23... Kf8 {[%clk 0:01:46.1]} 24. Be2 {[%clk 0:01:47.4]} 24... f5 {[%clk
0:01:29.3]} 25. Bh5 {[%clk 0:01:41.7]} 25... Rc8 {[%clk 0:01:13.2]} 26. h3
{[%clk 0:01:27.2]} 1-0

[Event "*** SCC Grand Prix: Titled Tuesday Blitz"]
[Site "Chess.com"]
[Date "2020.06.23"]
[Round "3"]
[White "WildTricks"]
[Black "BJthechessgod"]
[Result "0-1"]
[WhiteElo "2479"]
[BlackElo "2218"]
[TimeControl "180+1"]
[EndTime "10:27:22 PDT"]
[Termination "BJthechessgod won by resignation"]

1. e4 {[%clk 0:03:00.9]} 1... c5 {[%clk 0:02:58.1]} 2. Nf3 {[%clk 0:03:01.2]}
2... Nc6 {[%clk 0:02:58.7]} 3. d4 {[%clk 0:03:01.5]} 3... cxd4 {[%clk
0:02:58.7]} 4. Nxd4 {[%clk 0:03:02.4]} 4... g6 {[%clk 0:02:59.3]} 5. c4 {[%clk
0:03:01.2]} 5... Nf6 {[%clk 0:02:58.3]} 6. Nc3 {[%clk 0:03:00.7]} 6... d6 {[%clk
0:02:55.2]} 7. Be3 {[%clk 0:03:00.5]} 7... Ng4 {[%clk 0:02:50.2]} 8. Nxc6 {[%clk
0:02:44.6]} 8... Nxe3 {[%clk 0:02:00.5]} 9. Nxd8 {[%clk 0:02:43]} 9... Nxd1
{[%clk 0:02:00.2]} 10. Nxf7 {[%clk 0:02:43.1]} 10... Nxc3 {[%clk 0:01:48.4]} 11.
Nxh8 {[%clk 0:02:34.4]} 11... Nxe4 {[%clk 0:01:48.1]} 12. Bd3 {[%clk 0:02:32.7]}
12... Nc5 {[%clk 0:01:45.6]} 13. Bc2 {[%clk 0:02:26.9]} 13... Bg7 {[%clk
0:01:44.9]} 14. Nxg6 {[%clk 0:02:25.4]} 14... hxg6 {[%clk 0:01:45.8]} 15. Bxg6+
{[%clk 0:02:23.9]} 15... Kd8 {[%clk 0:01:43.8]} 16. O-O-O {[%clk 0:02:24.4]}
16... Be6 {[%clk 0:01:42.5]} 17. b3 {[%clk 0:02:21.9]} 17... a5 {[%clk
0:01:42.3]} 18. Rhe1 {[%clk 0:02:05.1]} 18... Kd7 {[%clk 0:01:34.4]} 19. f4
{[%clk 0:01:58.8]} 19... Rf8 {[%clk 0:01:29]} 20. g3 {[%clk 0:01:57.1]} 20... a4
{[%clk 0:01:20.1]} 21. b4 {[%clk 0:01:43.5]} 21... Na6 {[%clk 0:01:19.4]} 22.
Bc2 {[%clk 0:01:43.3]} 22... Bxc4 {[%clk 0:01:11.6]} 23. Bxa4+ {[%clk
0:01:40.7]} 23... b5 {[%clk 0:01:11.5]} 24. Bb3 {[%clk 0:01:36.2]} 24... Nxb4
{[%clk 0:01:09.1]} 25. Bxc4 {[%clk 0:01:28.7]} 25... bxc4 {[%clk 0:01:10]} 26.
Re2 {[%clk 0:01:22.8]} 26... Ra8 {[%clk 0:01:03.4]} 27. Rde1 {[%clk 0:01:11.7]}
27... Nd3+ {[%clk 0:01:03]} 28. Kb1 {[%clk 0:01:10.1]} 28... Rb8+ {[%clk
0:01:00.7]} 29. Kc2 {[%clk 0:01:06.6]} 29... Rb2+ {[%clk 0:00:56.4]} 30. Kd1
{[%clk 0:01:06.5]} 30... Rb1+ {[%clk 0:00:55.7]} 31. Kd2 {[%clk 0:01:05.6]}
31... Nxe1 {[%clk 0:00:53.4]} 32. Rxe1 {[%clk 0:01:01.3]} 32... Bc3+ {[%clk
0:00:52.9]} 33. Kxc3 {[%clk 0:01:00.6]} 33... Rxe1 {[%clk 0:00:53.8]} 34. Kxc4
{[%clk 0:01:01.5]} 34... Re2 {[%clk 0:00:53.7]} 35. h4 {[%clk 0:00:58.9]} 35...
Rxa2 {[%clk 0:00:53]} 36. g4 {[%clk 0:00:58.2]} 36... Rh2 {[%clk 0:00:53.9]} 37.
h5 {[%clk 0:00:57.9]} 37... Rh4 {[%clk 0:00:54.4]} 38. Kd4 {[%clk 0:00:56.4]}
38... Rxg4 {[%clk 0:00:54.4]} 39. Ke4 {[%clk 0:00:57.3]} 0-1

[Event "*** SCC Grand Prix: Titled Tuesday Blitz"]
[Site "Chess.com"]
[Date "2020.06.23"]
[Round "3"]
[White "Micki-taryan"]
[Black "GukeshDommaraju"]
[Result "1-0"]
[WhiteElo "3023"]
[BlackElo "2711"]
[TimeControl "180+1"]
[EndTime "10:27:23 PDT"]
[Termination "Micki-taryan won by resignation"]

1. c4 {[%clk 0:03:00.9]} 1... e6 {[%clk 0:02:58.4]} 2. Nc3 {[%clk 0:03:00.1]}
2... d5 {[%clk 0:02:58.6]} 3. e3 {[%clk 0:03:00.6]} 3... f6 {[%clk 0:02:58.5]}
4. Nf3 {[%clk 0:02:57.6]} 4... c6 {[%clk 0:02:50.7]} 5. d4 {[%clk 0:02:51.4]}
5... f5 {[%clk 0:02:50.6]} 6. Bd3 {[%clk 0:02:44.7]} 6... Nf6 {[%clk 0:02:50.4]}
7. h3 {[%clk 0:02:45.1]} 7... Bd6 {[%clk 0:02:50.1]} 8. Qc2 {[%clk 0:02:40]}
8... Ne4 {[%clk 0:02:39.9]} 9. b3 {[%clk 0:02:35.1]} 9... O-O {[%clk 0:02:16.2]}
10. Bb2 {[%clk 0:02:30]} 10... Nd7 {[%clk 0:02:13.4]} 11. a3 {[%clk 0:02:23.7]}
11... Ndf6 {[%clk 0:02:13.1]} 12. Ne2 {[%clk 0:02:21.5]} 12... b6 {[%clk
0:02:05.5]} 13. Ne5 {[%clk 0:02:13.5]} 13... Bb7 {[%clk 0:02:04.1]} 14. f3
{[%clk 0:02:05.3]} 14... Ng5 {[%clk 0:02:02.4]} 15. Nf4 {[%clk 0:02:01.5]} 15...
Qe8 {[%clk 0:01:58.4]} 16. O-O {[%clk 0:01:56.1]} 16... Rc8 {[%clk 0:01:53.9]}
17. c5 {[%clk 0:01:50.7]} 17... Bxe5 {[%clk 0:01:40.1]} 18. dxe5 {[%clk
0:01:49.9]} 18... Nd7 {[%clk 0:01:40.4]} 19. b4 {[%clk 0:01:45.8]} 19... Nf7
{[%clk 0:01:37.1]} 20. Nxe6 {[%clk 0:01:40.9]} 20... Qxe6 {[%clk 0:01:25.4]} 21.
Bxf5 {[%clk 0:01:41.2]} 21... Qe7 {[%clk 0:01:08.1]} 22. e6 {[%clk 0:01:37.7]}
22... Nh6 {[%clk 0:00:55.8]} 23. exd7 {[%clk 0:01:29.9]} 23... Qxe3+ {[%clk
0:00:42.2]} 24. Qf2 {[%clk 0:01:28.8]} 24... Qxf2+ {[%clk 0:00:32]} 25. Kxf2
{[%clk 0:01:29.7]} 25... Rcd8 {[%clk 0:00:30.5]} 26. Be6+ {[%clk 0:01:26.3]}
26... Kh8 {[%clk 0:00:30.7]} 27. Bd4 {[%clk 0:01:19.8]} 27... Nf5 {[%clk
0:00:25.4]} 28. Bxf5 {[%clk 0:01:19.8]} 28... Rxf5 {[%clk 0:00:25.4]} 29. Rfe1
{[%clk 0:01:20.7]} 29... Rff8 {[%clk 0:00:18.9]} 30. Re7 {[%clk 0:01:19.3]} 1-0

[Event "*** SCC Grand Prix: Titled Tuesday Blitz"]
[Site "Chess.com"]
[Date "2020.06.23"]
[Round "3"]
[White "temus_galaktionov"]
[Black "ARTHURMOTIVATOR"]
[Result "1-0"]
[WhiteElo "2692"]
[BlackElo "2342"]
[TimeControl "180+1"]
[EndTime "10:27:30 PDT"]
[Termination "temus_galaktionov won by resignation"]

1. d4 {[%clk 0:03:00.9]} 1... Nf6 {[%clk 0:02:58.6]} 2. Nf3 {[%clk 0:03:01.8]}
2... c5 {[%clk 0:02:56.8]} 3. c4 {[%clk 0:03:02.7]} 3... cxd4 {[%clk 0:02:55.2]}
4. Nxd4 {[%clk 0:03:03.6]} 4... e5 {[%clk 0:02:54.2]} 5. Nf3 {[%clk 0:03:03.4]}
5... Bc5 {[%clk 0:02:49.4]} 6. Nc3 {[%clk 0:02:57.8]} 6... Nc6 {[%clk
0:02:36.8]} 7. e3 {[%clk 0:02:57.3]} 7... O-O {[%clk 0:02:28.6]} 8. a3 {[%clk
0:02:57.2]} 8... a5 {[%clk 0:02:23.8]} 9. Be2 {[%clk 0:02:51]} 9... Re8 {[%clk
0:02:10.1]} 10. O-O {[%clk 0:02:48.4]} 10... e4 {[%clk 0:02:08.8]} 11. Nd4
{[%clk 0:02:45]} 11... d5 {[%clk 0:02:00.6]} 12. cxd5 {[%clk 0:02:31]} 12... Ne5
{[%clk 0:01:57.4]} 13. Ndb5 {[%clk 0:02:23.4]} 13... Bg4 {[%clk 0:01:33.9]} 14.
Bxg4 {[%clk 0:02:20.3]} 14... Nexg4 {[%clk 0:01:32.8]} 15. Qe2 {[%clk 0:01:57]}
15... Bd6 {[%clk 0:01:27.8]} 16. h3 {[%clk 0:01:54]} 16... Ne5 {[%clk
0:01:02.3]} 17. Rd1 {[%clk 0:01:53.6]} 17... Kh8 {[%clk 0:00:50.8]} 18. Bd2
{[%clk 0:01:46.8]} 18... g5 {[%clk 0:00:31.4]} 19. Na4 {[%clk 0:01:44.1]} 19...
g4 {[%clk 0:00:28.8]} 20. h4 {[%clk 0:01:43.7]} 20... g3 {[%clk 0:00:27.2]} 21.
Bc3 {[%clk 0:01:41.8]} 21... gxf2+ {[%clk 0:00:25.2]} 22. Qxf2 {[%clk
0:01:42.7]} 22... Nfg4 {[%clk 0:00:24.6]} 23. Qf4 {[%clk 0:01:33.5]} 23... Qxh4
{[%clk 0:00:21.4]} 24. Nxd6 {[%clk 0:01:29.8]} 24... f6 {[%clk 0:00:15.8]} 25.
Nxe8 {[%clk 0:01:26]} 25... Nf3+ {[%clk 0:00:14.9]} 26. gxf3 {[%clk 0:01:25.9]}
26... Qf2+ {[%clk 0:00:14.9]} 27. Kh1 {[%clk 0:01:25.2]} 27... Qh4+ {[%clk
0:00:12.5]} 28. Kg2 {[%clk 0:01:21.6]} 28... Qf2+ {[%clk 0:00:11.2]} 29. Kh3
{[%clk 0:01:20.9]} 29... Rxe8 {[%clk 0:00:04.3]} 30. fxg4 {[%clk 0:01:19.8]} 1-0

[Event "*** SCC Grand Prix: Titled Tuesday Blitz"]
[Site "Chess.com"]
[Date "2020.06.23"]
[Round "3"]
[White "Munkhzul_Turmunkh"]
[Black "silverback96"]
[Result "1-0"]
[WhiteElo "2623"]
[BlackElo "2277"]
[TimeControl "180+1"]
[EndTime "10:27:31 PDT"]
[Termination "Munkhzul_Turmunkh won by checkmate"]

1. e4 {[%clk 0:03:00.9]} 1... e6 {[%clk 0:02:59.9]} 2. d4 {[%clk 0:02:59.4]}
2... d5 {[%clk 0:03:00.3]} 3. exd5 {[%clk 0:02:58.1]} 3... exd5 {[%clk
0:02:59.7]} 4. Nf3 {[%clk 0:02:58.7]} 4... Bd6 {[%clk 0:02:59.5]} 5. Bd3 {[%clk
0:02:57.2]} 5... Nc6 {[%clk 0:02:58.2]} 6. c3 {[%clk 0:02:55.9]} 6... Bg4 {[%clk
0:02:56.9]} 7. O-O {[%clk 0:02:47.2]} 7... Nge7 {[%clk 0:02:56.7]} 8. Re1 {[%clk
0:02:45.5]} 8... Qd7 {[%clk 0:02:56.4]} 9. h3 {[%clk 0:02:39.4]} 9... Bh5 {[%clk
0:02:55.7]} 10. b4 {[%clk 0:02:34.4]} 10... O-O-O {[%clk 0:02:55]} 11. a4 {[%clk
0:02:28.6]} 11... f6 {[%clk 0:02:49.3]} 12. a5 {[%clk 0:02:23.3]} 12... Rdg8
{[%clk 0:02:24.6]} 13. b5 {[%clk 0:02:19.1]} 13... Nd8 {[%clk 0:02:24.1]} 14.
Ba3 {[%clk 0:02:04.3]} 14... g5 {[%clk 0:02:21.6]} 15. Bxd6 {[%clk 0:01:58.9]}
15... Qxd6 {[%clk 0:02:21]} 16. c4 {[%clk 0:01:52.7]} 16... dxc4 {[%clk
0:02:09]} 17. Bxc4 {[%clk 0:01:50.8]} 17... Nd5 {[%clk 0:02:04.8]} 18. Qb3
{[%clk 0:01:43.7]} 18... Bf7 {[%clk 0:01:29]} 19. Nbd2 {[%clk 0:01:40.9]} 19...
g4 {[%clk 0:01:24.2]} 20. hxg4 {[%clk 0:01:37.8]} 20... Rxg4 {[%clk 0:01:19.3]}
21. Ne4 {[%clk 0:01:30.5]} 21... Qd7 {[%clk 0:00:59.9]} 22. b6 {[%clk
0:01:28.6]} 22... Rhg8 {[%clk 0:00:52.4]} 23. bxa7 {[%clk 0:01:16.5]} 23...
Rxg2+ {[%clk 0:00:51.6]} 24. Kf1 {[%clk 0:01:16.3]} 24... Qh3 {[%clk 0:00:35.1]}
25. a8=Q+ {[%clk 0:01:14]} 25... Kd7 {[%clk 0:00:34.9]} 26. Ne5+ {[%clk
0:01:13.8]} 26... Ke8 {[%clk 0:00:28.8]} 27. Qxh3 {[%clk 0:01:12.1]} 27... Nf4
{[%clk 0:00:28]} 28. Bxf7+ {[%clk 0:01:10.5]} 28... Kf8 {[%clk 0:00:24.7]} 29.
Qxd8+ {[%clk 0:01:10]} 29... Kg7 {[%clk 0:00:22.1]} 30. Qxg8# {[%clk 0:01:10.6]}
1-0

[Event "*** SCC Grand Prix: Titled Tuesday Blitz"]
[Site "Chess.com"]
[Date "2020.06.23"]
[Round "3"]
[White "Biranidun"]
[Black "Artem_Koval"]
[Result "1-0"]
[WhiteElo "2739"]
[BlackElo "2427"]
[TimeControl "180+1"]
[EndTime "10:27:38 PDT"]
[Termination "Biranidun won by resignation"]

1. e4 {[%clk 0:03:00.9]} 1... c5 {[%clk 0:02:59]} 2. Nf3 {[%clk 0:03:01.2]} 2...
d6 {[%clk 0:02:59.1]} 3. d4 {[%clk 0:03:01.7]} 3... cxd4 {[%clk 0:03:00]} 4.
Nxd4 {[%clk 0:03:02.6]} 4... f6 {[%clk 0:02:59.9]} 5. Nc3 {[%clk 0:03:03.2]}
5... e5 {[%clk 0:02:56.5]} 6. Bb5+ {[%clk 0:03:01.7]} 6... Bd7 {[%clk
0:02:54.1]} 7. Ne6 {[%clk 0:02:53.9]} 7... Qa5 {[%clk 0:02:47]} 8. Qd5 {[%clk
0:02:39.5]} 8... Bxb5 {[%clk 0:02:18.6]} 9. Qxb5+ {[%clk 0:02:25.6]} 9... Qxb5
{[%clk 0:02:13.1]} 10. Nxb5 {[%clk 0:02:26.5]} 10... Na6 {[%clk 0:02:09.9]} 11.
Nec7+ {[%clk 0:02:25.7]} 11... Nxc7 {[%clk 0:02:10.1]} 12. Nxc7+ {[%clk
0:02:26.6]} 12... Kd7 {[%clk 0:02:10.5]} 13. Nxa8 {[%clk 0:02:27.4]} 13... Be7
{[%clk 0:02:07.9]} 14. Be3 {[%clk 0:02:27.5]} 14... Nh6 {[%clk 0:02:00.9]} 15.
Bxa7 {[%clk 0:02:13.8]} 15... Rxa8 {[%clk 0:01:59.9]} 16. Be3 {[%clk 0:02:14.5]}
16... Ng4 {[%clk 0:01:59.6]} 17. Bd2 {[%clk 0:02:07.6]} 17... d5 {[%clk
0:01:30.5]} 18. f3 {[%clk 0:02:06.4]} 18... Nh6 {[%clk 0:01:16.7]} 19. Bxh6
{[%clk 0:02:06.7]} 19... gxh6 {[%clk 0:01:17.6]} 20. exd5 {[%clk 0:02:07.4]}
20... Kd6 {[%clk 0:01:06.3]} 21. c4 {[%clk 0:02:07.2]} 21... Kc5 {[%clk
0:01:05.7]} 22. b3 {[%clk 0:02:06.8]} 22... b5 {[%clk 0:00:58.4]} 23. cxb5
{[%clk 0:02:06.4]} 23... Kxb5 {[%clk 0:00:49.7]} 24. Ke2 {[%clk 0:02:06.8]}
24... Bc5 {[%clk 0:00:48.1]} 25. a4+ {[%clk 0:01:58.6]} 25... Kb4 {[%clk
0:00:46.5]} 26. Rhc1 {[%clk 0:01:32.5]} 26... Bd4 {[%clk 0:00:44.8]} 27. Rab1
{[%clk 0:01:32.7]} 27... Rd8 {[%clk 0:00:43.9]} 28. Rc4+ {[%clk 0:01:31.5]}
28... Ka5 {[%clk 0:00:44]} 29. b4+ {[%clk 0:01:13.4]} 29... Kxa4 {[%clk
0:00:44.9]} 30. b5+ {[%clk 0:01:13.8]} 30... Ka5 {[%clk 0:00:45.2]} 31. b6
{[%clk 0:01:14.1]} 31... Bxb6 {[%clk 0:00:35.7]} 32. Rc2 {[%clk 0:01:12.7]}
32... Ka6 {[%clk 0:00:35.8]} 33. Rc6 {[%clk 0:01:12.4]} 33... Rb8 {[%clk
0:00:29.7]} 34. Rxf6 {[%clk 0:01:12.5]} 34... Ka5 {[%clk 0:00:25.7]} 35. Kd3
{[%clk 0:01:11.3]} 1-0